bitfinex/quotes_ETHUSD_20250827
["timestamp","ask_amount","ask_price","bid_price","bid_amount"]
[1756312620934,2.16314434,4622.9,4622.8,1e-08]
[1756312621236,10.06837535,4622.9,4622.8,1e-08]
[1756312621398,10.85587535,4622.9,4622.8,1e-08]
[1756312621592,10.65684071,4622.9,4622.8,1e-08]
[1756312621806,10.94036045,4622.9,4622.8,1e-08]
[1756312621995,6.09987581,4622.9,4622.8,1e-08]
[1756312622194,9.95287581,4622.9,4622.8,1e-08]
[1756312622435,9.95287581,4622.9,4622.8,0.29340001]
[1756312622436,5.50188458,4622.9,4622.8,0.29340001]
[1756312622602,3.44674024,4622.9,4622.8,0.75400001]
[1756312622791,0.44674024,4622.9,4622.8,0.75400001]
[1756312622997,2.60988458,4622.9,4622.8,0.75400001]
[1756312623229,2.60988458,4622.9,4622.8,1e-08]
[1756312623929,0.44674024,4622.9,4622.8,0.75400001]
[1756312624094,2.60988458,4622.9,4622.8,0.75400001]
[1756312624529,0.44674024,4622.9,4622.8,0.75400001]
[1756312625099,6.46288458,4622.9,4622.8,0.29340001]
[1756312625632,6.46288458,4622.9,4622.8,1e-08]
[1756312625837,9.77668458,4622.9,4622.8,1e-08]
[1756312626418,9.46288458,4622.9,4622.8,1e-08]
[1756312627028,9.77668458,4622.9,4622.8,1e-08]
[1756312627599,10.25038458,4622.9,4622.8,1e-08]
[1756312628510,10.25038458,4622.9,4621.8,0.02]
[1756312628511,3.0,4622.8,4621.8,0.02]
[1756312628699,2.27161236,4621.9,4621.8,1e-08]
[1756312628904,2.16408059,4620.9,4620.8,0.02]
[1756312629140,10.78908059,4620.9,4620.8,0.02]
[1756312629300,11.10288059,4620.9,4620.8,0.02]
[1756312629500,11.44174951,4620.9,4620.8,0.02]
[1756312630351,3.0,4620.8,4620.6,1e-08]
[1756312630645,9.01717425,4620.7,4620.6,1e-08]
[1756312631141,9.43897425,4620.7,4620.6,1e-08]
[1756312631711,9.12517425,4620.7,4620.6,0.29340001]
[1756312632011,9.12517425,4620.7,4620.6,1e-08]
[1756312632012,9.91267425,4620.7,4620.6,1e-08]
[1756312632746,9.91267425,4620.7,4620.6,0.29340001]
[1756312632747,5.27217425,4620.7,4620.6,0.29340001]
[1756312632913,9.12517425,4620.7,4620.6,1e-08]
[1756312633349,5.27217425,4620.7,4620.6,0.75400001]
[1756312633565,9.12517425,4620.7,4620.6,0.75400001]
[1756312633733,9.12517425,4620.7,4620.6,0.29340001]
[1756312634052,9.12517425,4620.7,4620.6,1e-08]
[1756312634342,9.12517425,4620.7,4620.6,0.75400001]
[1756312634642,6.961,4620.7,4620.6,0.75400001]
[1756312634825,3.961,4620.7,4620.6,0.75400001]
[1756312635023,6.12517425,4620.7,4620.6,0.75400001]
[1756312635541,6.12517425,4620.7,4620.6,0.29340001]
[1756312635706,6.12517425,4620.7,4620.6,1e-08]
[1756312636524,9.12517425,4620.7,4620.6,1e-08]
[1756312636973,9.42647425,4620.7,4620.6,1e-08]
[1756312637465,9.87397425,4620.7,4620.6,1e-08]
[1756312637768,9.42647425,4620.7,4620.6,1e-08]
[1756312638222,9.12517425,4620.7,4620.6,1e-08]
[1756312638634,9.12517425,4620.7,4620.6,0.31080001]
[1756312639057,9.12517425,4620.7,4620.6,1e-08]
[1756312639663,9.87397425,4620.7,4620.6,1e-08]
[1756312639889,9.87397425,4620.7,4619.8,0.02]
[1756312639890,18.33080906,4619.9,4619.8,1e-08]
[1756312640072,18.33080906,4619.9,4615.0,6.14422125]
[1756312640073,2.16506451,4618.8,4617.1,0.4345]
[1756312640364,3.0,4618.0,4615.3,0.02936706]
[1756312640533,3.853,4617.9,4616.9,0.4345]
[1756312640723,1.665,4618.6,4617.9,0.3108]
[1756312640919,2.16595551,4616.9,4615.8,0.0489931]
[1756312641162,1.665,4617.5,4615.8,0.0489931]
[1756312641447,3.614,4618.5,4616.8,0.3308]
[1756312641448,3.31,4617.7,4616.8,0.3308]
[1756312641761,1.665,4618.2,4616.9,0.4345]
[1756312641762,3.853,4617.9,4616.9,0.4345]
[1756312641946,3.853,4617.9,4617.8,0.3108]
[1756312642128,3.853,4617.9,4616.9,0.4345]
[1756312642129,0.33904509,4617.7,4616.8,0.4545]
[1756312642329,2.16567406,4617.5,4616.8,0.4545]
[1756312642556,3.853,4617.6,4616.8,0.4545]
[1756312642858,6.01863027,4617.6,4616.8,0.4545]
[1756312643065,2.16577561,4617.3,4616.8,0.4545]
[1756312643264,6.01885747,4617.2,4616.8,0.02]
[1756312643489,1.665,4617.3,4616.8,0.02]
[1756312643758,6.01886168,4617.1,4616.8,0.02]
[1756312643937,2.16595551,4616.9,4616.8,0.02]
[1756312644139,2.46725551,4616.9,4616.8,0.02]
[1756312644345,5.91475551,4616.9,4616.8,0.02]
[1756312645169,5.16600242,4616.8,4615.3,0.0077]
[1756312645325,3.7488,4616.9,4615.3,0.0077]
[1756312645326,5.16609626,4616.6,4615.3,0.0077]
[1756312645526,3.50561327,4617.2,4615.9,0.4345]
[1756312645763,3.0,4616.9,4615.9,0.4345]
[1756312645971,0.33917747,4616.5,4615.9,0.4345]
[1756312646121,0.33917747,4616.5,4616.4,0.3108]
[1756312646324,0.33917747,4616.5,4615.9,0.4345]
[1756312646325,4.19317747,4616.5,4615.5,0.4345]
[1756312646526,0.33917747,4616.5,4616.4,0.3108]
[1756312646757,4.19317747,4616.5,4615.3,0.0077]
[1756312646930,5.08431775,4616.4,4615.3,0.0077]
[1756312647331,1.665,4616.4,4616.3,0.3108]
[1756312647533,0.33917747,4616.5,4616.4,2.1661901]
[1756312647733,3.854,4617.2,4616.4,0.7453]
[1756312648055,3.0,4617.1,4615.5,0.4345]
[1756312648364,4.19312043,4617.2,4615.8,0.46182839]
[1756312648365,0.33912043,4617.2,4615.8,0.46182839]
[1756312648523,0.33912043,4617.2,4617.1,0.3108]
[1756312648726,0.33912043,4617.2,4617.1,0.7453]
[1756312648930,1.666,4618.3,4617.1,0.7453]
[1756312649129,1.666,4618.3,4617.2,0.4345]
[1756312649360,2.16543958,4618.0,4617.2,0.4345]
[1756312649664,0.63893116,4618.1,4616.4,0.4345]
[1756312649896,2.16553337,4617.8,4616.4,0.4345]
[1756312650163,2.16629099,4616.2,4615.7,0.4345]
[1756312650367,0.108,4615.9,4615.7,0.4345]
[1756312650566,0.108,4615.9,4615.3,0.0077]
[1756312650766,0.108,4615.9,4615.8,0.33812839]
[1756312650969,5.85913741,4616.7,4615.8,0.33812839]
[1756312651155,0.108,4616.3,4615.8,0.77262839]
[1756312651470,2.1661901,4616.4,4615.9,0.4345]
[1756312651656,0.108,4616.0,4615.8,0.02732839]
[1756312651833,0.108,4616.0,4615.8,0.24671737]
[1756312652034,0.108,4616.5,4615.9,0.3108]
[1756312652233,0.108,4616.5,4616.1,2.16633088]
[1756312652573,0.33913741,4616.7,4616.4,2.4769901]
[1756312652763,0.4475,4619.0,4616.8,2.16600242]
[1756312652948,0.108,4617.6,4617.4,0.3108]
[1756312653150,0.108,4617.6,4617.5,0.4345]
[1756312653465,0.128,4617.8,4617.5,0.4345]
[1756312653667,0.128,4617.8,4617.2,0.4345]
[1756312653985,0.128,4617.8,4617.7,0.3108]
[1756312654140,0.128,4617.8,4617.7,0.7453]
[1756312654483,0.02,4617.8,4617.7,0.7453]
[1756312654637,0.02,4617.8,4617.7,0.3108]
[1756312654844,0.02,4617.8,4617.2,0.4345]
[1756312655057,0.108,4617.6,4617.2,0.4345]
[1756312655267,0.108,4617.6,4616.9,0.108]
[1756312655603,0.108,4617.6,4617.5,2.47647406]
[1756312655763,0.108,4617.6,4617.5,0.7453]
[1756312655956,0.02,4617.8,4616.7,2.1005]
[1756312656152,0.108,4617.0,4616.3,0.108]
[1756312656359,2.16585247,4617.2,4616.9,0.3108]
[1756312656564,0.108,4617.0,4616.9,0.3108]
[1756312656856,0.108,4617.0,4616.9,0.7453]
[1756312657061,0.108,4617.0,4616.9,0.3108]
[1756312657462,0.108,4617.0,4616.9,0.7453]
[1756312658082,0.108,4617.0,4616.9,2.91125551]
[1756312658281,0.108,4617.0,4616.9,1.03642555]
[1756312658475,0.108,4617.0,4616.9,0.7453]
[1756312659159,0.108,4617.0,4616.9,2.91125551]
[1756312659359,0.02,4617.8,4617.0,2.95790859]
[1756312659662,0.02,4617.8,4617.7,2.16558026]
[1756312659868,0.02,4617.8,4617.7,3.26838026]
[1756312660167,0.02,4617.8,4617.7,4.24628377]
[1756312660396,0.02,4617.8,4617.7,5.93393957]
[1756312660704,0.02,4617.8,4617.7,5.91228377]
[1756312660911,0.02,4617.8,4617.7,9.76628377]
[1756312661232,0.02,4617.8,4617.7,5.91228377]
[1756312664205,0.02,4617.8,4617.7,9.76628377]
[1756312664478,0.19734177,4619.5,4619.4,2.1647833]
[1756312664693,0.33896641,4619.7,4619.3,2.16482533]
[1756312664888,0.33896641,4619.7,4619.0,0.792]
[1756312665111,0.33896641,4619.7,4619.3,2.16482873]
[1756312665314,0.33896641,4619.7,4619.1,2.16488593]
[1756312665618,0.33896641,4619.7,4619.0,0.792]
[1756312665813,0.33896641,4619.7,4618.3,0.4345]
[1756312666016,1.86338521,4619.6,4617.9,1.666]
[1756312666185,1.86338521,4619.6,4618.0,0.792]
[1756312666186,0.19738979,4619.5,4618.0,0.792]
[1756312666683,0.19738979,4619.5,4618.8,2.16506402]
[1756312666883,2.16482423,4619.4,4618.4,0.792]
[1756312667123,2.1647468,4619.5,4618.2,0.792]
[1756312667292,0.19746945,4619.4,4618.5,2.16516846]
[1756312667505,2.16488246,4619.2,4618.3,2.16525706]
[1756312667701,0.46534768,4619.5,4618.5,2.16516368]
[1756312667924,0.46534768,4619.5,4618.2,0.792]
[1756312667925,2.16489197,4619.2,4618.2,0.792]
[1756312668124,0.33893356,4619.3,4618.1,0.4322]
[1756312668331,2.16501764,4618.9,4617.6,1.2242]
[1756312668496,2.16501764,4618.9,4618.0,0.792]
[1756312668695,2.16492444,4619.1,4618.3,2.16528979]
[1756312668896,2.16500962,4619.0,4618.1,2.165378]
[1756312669208,4.43896168,4619.3,4618.0,0.792]
[1756312669393,0.44693356,4619.3,4618.6,0.108]
[1756312669590,0.33893356,4619.3,4619.0,2.16494665]
[1756312669835,0.33893356,4619.3,4619.2,0.2866]
[1756312670044,0.02,4619.8,4619.7,2.16464272]
[1756312670248,0.02,4619.8,4619.7,3.06464272]
[1756312670444,0.02,4619.8,4619.7,4.30854297]
[1756312670653,0.02,4619.8,4619.7,8.16154297]
[1756312671200,0.02,4619.8,4619.7,2.55924272]
[1756312671833,0.02,4619.8,4617.5,2.1656702]
[1756312672150,0.02,4619.8,4618.8,1.773]
[1756312672151,0.108,4619.5,4618.8,1.773]
[1756312672329,0.33888941,4619.6,4618.4,3.652]
[1756312672644,0.108,4619.1,4619.0,2.16497077]
[1756312672804,0.108,4619.4,4619.1,2.1648845]
[1756312673004,0.108,4619.4,4619.0,2.59716683]
[1756312673313,0.108,4619.7,4619.3,0.2866]
[1756312673520,0.108,4619.7,4619.5,2.16469818]
[1756312673828,0.108,4619.7,4619.6,2.88348958]
[1756312674146,0.3105,4619.7,4619.5,0.108]
[1756312674307,0.108,4619.5,4618.8,0.108]
[1756312674503,0.02,4619.8,4619.1,2.16488731]
[1756312674704,0.108,4619.7,4618.8,0.108]
[1756312674920,0.108,4619.4,4618.8,0.108]
[1756312675250,0.108,4619.7,4619.1,2.16488771]
[1756312675438,0.108,4619.7,4619.1,2.16492097]
[1756312675633,0.108,4619.7,4618.8,0.5402]
[1756312675949,0.02,4619.8,4619.5,0.108]
[1756312676111,0.02,4619.8,4619.1,2.16488195]
[1756312676311,0.02,4619.8,4619.2,0.108]
[1756312676533,2.16465452,4619.7,4618.9,2.16498037]
[1756312676716,2.18460604,4619.8,4619.0,2.27295417]
[1756312676903,0.02,4619.8,4619.5,2.16472026]
[1756312677104,0.02,4619.8,4619.7,2.55924272]
[1756312677435,0.02,4619.8,4619.7,3.35124272]
[1756312677739,0.02,4619.8,4619.7,3.78344272]
[1756312679836,0.02,4619.8,4619.7,0.108]
[1756312680046,0.02,4619.8,4619.5,3.851]
[1756312680345,0.02,4619.8,4619.7,2.55924272]
[1756312680540,0.02,4619.8,4619.7,3.35124272]
[1756312680741,0.02,4619.8,4619.7,3.78344272]
[1756312681145,0.002,4620.7,4620.2,2.95640846]
[1756312681312,0.002,4620.7,4620.5,0.792]
[1756312681512,0.002,4620.7,4620.4,2.16431477]
[1756312681513,0.002,4620.7,4620.6,4.22185914]
[1756312682022,0.002,4620.7,4620.6,4.65405914]
[1756312682221,0.002,4620.7,4620.6,4.63241693]
[1756312682908,0.002,4620.7,4620.6,8.05121693]
[1756312683307,0.002,4620.7,4620.6,8.48341693]
[1756312686366,0.3387436,4622.2,4621.2,2.1639401]
[1756312686671,0.002,4624.3,4622.4,2.95537833]
[1756312686959,0.002,4624.3,4622.8,2.95519113]
[1756312687165,0.4638,4622.8,4621.9,0.792]
[1756312687322,0.3105,4622.6,4622.3,0.108]
[1756312687522,0.3105,4622.6,4621.8,6.01361622]
[1756312687749,0.3105,4622.6,4622.0,0.108]
[1756312687957,0.4638,4623.2,4622.1,0.792]
[1756312688118,0.5718,4623.2,4622.5,0.108]
[1756312688324,1.665,4623.3,4622.2,3.85]
[1756312688524,0.3105,4622.5,4621.8,3.85]
[1756312688841,0.4638,4622.4,4621.9,0.108]
[1756312689142,0.3105,4622.0,4621.5,2.16375487]
[1756312689341,0.3105,4622.0,4621.7,0.108]
[1756312689557,0.4638,4621.9,4621.3,3.849]
[1756312689745,0.4638,4621.9,4621.5,0.108]
[1756312691051,0.108,4622.3,4621.5,0.108]
[1756312691249,0.3105,4621.6,4621.2,5.514]
[1756312691451,0.3105,4621.6,4621.4,2.16382458]
[1756312691654,0.4638,4622.2,4621.4,2.16382458]
[1756312691856,2.16355995,4622.1,4621.3,2.16389327]
[1756312692159,2.27152401,4622.1,4621.4,2.16384611]
[1756312692364,2.27152401,4622.1,4621.2,5.514]
[1756312692365,0.108,4622.1,4621.2,5.514]
[1756312692568,0.108,4622.1,4621.5,0.108]
[1756312692770,2.16356555,4622.0,4621.5,0.108]
[1756312693067,0.3105,4621.6,4621.2,3.8289394]
[1756312693269,0.33871743,4622.0,4621.2,1.665]
[1756312693474,0.33871743,4622.0,4621.5,0.108]
[1756312693975,0.33871743,4622.0,4621.8,0.02]
[1756312694175,0.4658,4622.9,4621.8,0.02]
[1756312694387,0.002,4622.9,4622.2,2.16343203]
[1756312694740,0.002,4622.9,4622.3,0.108]
[1756312694936,0.002,4622.9,4622.5,0.792]
[1756312695275,0.002,4622.9,4622.8,3.34979113]
[1756312695583,0.002,4622.9,4622.8,3.37142304]
[1756312695784,0.002,4622.9,4622.8,3.80362304]
[1756312695991,0.002,4622.9,4622.8,7.65262304]
[1756312696334,0.002,4622.9,4622.8,7.63099113]
[1756312696497,0.002,4622.9,4622.8,8.65790404]
[1756312696698,0.002,4622.9,4622.8,4.37670404]
[1756312696850,0.002,4622.9,4622.8,2.27119113]
[1756312697501,0.002,4622.9,4622.8,3.06319113]
[1756312697650,0.002,4622.9,4622.8,3.83242304]
[1756312697845,0.002,4622.9,4622.8,3.36359113]
[1756312698047,0.002,4622.9,4622.8,8.51001]
[1756312698290,0.002,4622.9,4622.8,8.59637809]
[1756312699053,0.002,4622.9,4622.8,8.14917809]
[1756312699291,0.002,4622.9,4622.8,6.11919113]
[1756312700078,0.002,4622.9,4622.8,7.55079113]
[1756312700258,0.002,4622.9,4622.8,7.65879113]
[1756312700594,1e-08,4622.9,4622.8,7.65879113]
[1756312700744,1e-08,4622.9,4622.8,3.36359113]
[1756312700944,1e-08,4622.9,4622.8,8.23310822]
[1756312701174,1e-08,4622.9,4622.8,8.21147631]
[1756312701548,0.30640001,4622.9,4622.8,2.82387631]
[1756312701751,0.30640001,4622.9,4621.9,3.85]
[1756312701752,0.73760001,4622.9,4621.9,3.85]
[1756312701962,0.73760001,4622.9,4622.7,2.16322478]
[1756312702183,0.30640001,4622.9,4622.3,3.852]
[1756312702360,0.30640001,4622.9,4622.4,2.16333216]
[1756312702548,0.30640001,4622.9,4622.4,6.01433216]
[1756312702749,0.73760001,4622.9,4622.5,2.16333001]
[1756312702948,0.30640001,4622.9,4622.4,3.851]
[1756312703148,0.4312,4622.8,4622.4,3.851]
[1756312703387,0.4312,4622.7,4622.4,3.851]
[1756312703883,1e-08,4622.9,4622.6,2.16328473]
[1756312704083,0.43120001,4622.9,4622.4,3.851]
[1756312704383,1e-08,4622.9,4622.4,3.851]
[1756312704588,1e-08,4622.9,4622.8,2.16319113]
[1756312704765,1e-08,4622.9,4622.4,3.851]
[1756312704953,1e-08,4622.9,4622.4,6.01436064]
[1756312705155,0.43120001,4622.9,4622.4,3.851]
[1756312705851,0.3064,4622.5,4621.0,0.16512998]
[1756312706050,0.3064,4622.5,4621.3,3.847]
[1756312706573,0.3064,4622.5,4621.9,2.16360329]
[1756312706805,0.3064,4622.5,4621.8,0.001]
[1756312707101,0.4312,4622.4,4621.8,0.001]
[1756312707454,0.4312,4622.4,4621.8,2.1646447]
[1756312707764,0.3064,4621.9,4621.8,0.001]
[1756312708167,0.7376,4621.9,4621.8,0.001]
[1756312709856,0.7376,4621.9,4621.3,3.799]
[1756312710052,0.33872393,4622.4,4621.3,3.799]
[1756312710356,0.33872393,4622.4,4621.7,2.16367277]
[1756312710556,0.33872393,4622.4,4621.3,3.799]
[1756312710756,0.33872393,4622.4,4621.7,2.16369756]
[1756312710976,0.33872393,4622.4,4621.8,2.16365651]
[1756312711183,2.16324487,4622.7,4621.9,2.16359457]
[1756312711392,2.16324487,4622.7,4621.4,0.9935]
[1756312711393,2.16317102,4622.9,4622.1,2.16351724]
[1756312711596,2.36173163,4622.8,4622.1,2.16351724]
[1756312711792,0.108,4622.5,4621.9,0.108]
[1756312712012,0.3064,4622.2,4621.9,0.108]
[1756312712311,0.67218341,4622.2,4621.5,3.955]
[1756312712470,0.108,4622.2,4621.9,2.16360804]
[1756312712673,0.108,4622.4,4621.8,0.108]
[1756312712886,0.108,4622.4,4622.0,2.16355015]
[1756312713109,0.33870627,4622.6,4622.4,0.792]
[1756312713424,2.16322932,4622.8,4622.0,4.639]
[1756312713574,2.59582527,4622.8,4622.0,2.1635568]
[1756312714524,0.43263414,4622.8,4621.9,3.847]
[1756312714810,1e-08,4622.9,4622.8,2.95519113]
[1756312715148,1e-08,4622.9,4622.8,3.25559113]
[1756312715818,0.30640001,4622.9,4622.1,1.664]
[1756312716138,2.16319331,4622.8,4622.2,2.91]
[1756312716303,1e-08,4622.9,4622.3,0.792]
[1756312716609,1e-08,4622.9,4622.2,0.792]
[1756312716903,2.16315496,4622.9,4622.2,0.792]
[1756312717104,2.16330948,4622.6,4622.1,1.664]
[1756312717308,0.4312,4622.6,4622.1,0.792]
[1756312717606,0.3064,4622.2,4621.4,1.664]
[1756312717777,7.05899999,4622.6,4622.0,2.16352816]
[1756312717974,7.05899999,4622.6,4621.7,3.847]
[1756312718194,2.46992317,4622.1,4621.5,0.792]
[1756312718874,7.39769899,4622.6,4621.5,0.792]
[1756312719071,2.1634275,4622.3,4621.6,2.16374068]
[1756312719396,0.3064,4621.7,4621.0,2.16402027]
[1756312719593,0.55340594,4621.7,4620.9,6.01107226]
[1756312719908,2.47011553,4621.7,4621.0,0.792]
[1756312720113,0.3064,4621.7,4621.0,0.792]
[1756312720276,0.3064,4621.7,4621.2,2.16390484]
[1756312720475,0.3064,4621.7,4621.0,0.792]
[1756312721113,0.3064,4621.7,4620.9,0.792]
[1756312721313,0.6297752,4621.6,4620.8,0.001]
[1756312721514,0.1985752,4621.5,4620.8,0.001]
[1756312721726,2.47048059,4620.9,4620.8,0.001]
[1756312722387,0.3064,4620.9,4620.8,0.001]
[1756312722712,0.4312,4621.4,4620.8,0.001]
[1756312722713,4.16652436,4621.6,4620.8,0.001]
[1756312722914,2.16388343,4621.4,4620.8,0.001]
[1756312723112,0.108,4621.1,4620.8,0.001]
[1756312723413,0.108,4621.3,4620.8,0.793]
[1756312723814,0.108,4621.3,4620.9,2.16408059]
[1756312724014,0.108,4621.3,4621.2,0.3004]
[1756312724217,0.33875415,4621.6,4621.2,3.2563401]
[1756312724422,0.33875415,4621.6,4621.3,0.792]
[1756312724597,0.33875415,4621.6,4621.3,0.108]
[1756312724916,0.33875415,4621.6,4621.4,0.792]
[1756312725313,2.16356727,4622.0,4620.9,2.16407789]
[1756312725522,0.108,4621.7,4621.2,0.792]
[1756312726019,0.108,4621.7,4621.1,2.95598406]
[1756312726918,0.108,4621.7,4621.1,0.792]
[1756312727123,2.16375877,4621.6,4621.1,0.792]
[1756312727418,2.27171406,4621.7,4621.1,0.792]
[1756312727798,2.16376119,4621.6,4621.1,0.792]
[1756312728294,2.16380023,4621.5,4621.0,0.108]
[1756312728484,0.22717612,4621.6,4621.0,0.108]
[1756312728691,2.27171277,4621.7,4621.0,0.108]
[1756312729117,2.61046524,4621.7,4621.0,0.108]
[1756312729324,0.44675247,4621.7,4621.3,2.16388969]
[1756312729500,0.44675247,4621.7,4621.1,0.792]
[1756312730251,0.44675247,4621.7,4621.0,2.27199526]
[1756312730252,2.16385015,4621.4,4621.0,0.108]
[1756312730400,2.16398692,4621.1,4621.0,0.108]
[1756312730604,0.4151,4621.1,4620.8,0.001]
[1756312731146,0.8707,4621.1,4620.8,0.001]
[1756312731305,0.4556,4621.0,4620.8,0.001]
[1756312731719,0.3071,4620.9,4620.8,0.001]
[1756312731916,2.47118059,4620.9,4620.8,0.001]
[1756312732140,0.3071,4620.9,4620.8,0.001]
[1756312732345,3.48053147,4620.9,4620.8,0.001]
[1756312732506,6.12525859,4620.9,4620.8,0.001]
[1756312733442,3.505578,4620.9,4620.8,0.001]
[1756312733949,5.66965859,4620.9,4620.8,0.001]
[1756312734840,3.505578,4620.9,4620.8,0.001]
[1756312735040,0.198478,4620.9,4620.8,0.001]
[1756312735542,0.389678,4620.9,4620.8,0.001]
[1756312735748,0.198478,4620.9,4620.8,0.001]
[1756312735919,0.108,4621.1,4620.8,0.3163]
[1756312736330,0.108,4621.1,4620.8,0.001]
[1756312736545,0.1912,4620.9,4620.8,0.001]
[1756312736719,2.35528059,4620.9,4620.8,0.001]
[1756312737233,2.62680987,4620.9,4620.8,0.001]
[1756312737435,2.35528059,4620.9,4620.8,0.001]
[1756312737739,5.80828059,4620.9,4620.8,0.001]
[1756312737946,6.0066437,4620.9,4620.8,0.001]
[1756312738547,9.8536437,4620.9,4620.8,0.001]
[1756312738844,6.0066437,4620.9,4620.8,0.001]
[1756312739017,6.34548508,4620.9,4620.8,0.001]
[1756312739219,5.89248508,4620.9,4620.8,0.001]
[1756312739643,9.73948508,4620.9,4620.8,0.001]
[1756312739832,5.69412197,4620.9,4620.8,0.001]
[1756312740208,0.53004138,4620.9,4620.8,0.001]
[1756312740547,0.33884138,4620.9,4620.8,2.48042742]
[1756312740732,0.33884138,4620.9,4620.8,1.04614274]
[1756312740933,0.33884138,4620.9,4620.8,3.21027016]
[1756312741131,0.108,4621.2,4620.8,1.04614274]
[1756312741332,0.44677983,4621.2,4620.9,0.471]
[1756312741547,0.33877983,4621.2,4621.1,3.27128692]
[1756312741751,0.108,4622.2,4621.2,0.792]
[1756312742046,0.33873205,4622.3,4622.2,2.16347193]
[1756312742247,0.33873205,4622.3,4622.2,3.76340664]
[1756312742452,1e-08,4622.9,4622.5,0.792]
[1756312742652,1e-08,4622.9,4622.3,0.792]
[1756312742653,0.108,4622.8,4622.3,0.792]
[1756312742814,0.108,4622.8,4622.4,0.471]
[1756312743144,0.108,4622.8,4622.2,2.95546503]
[1756312743660,0.3071,4622.3,4621.4,5.16383391]
[1756312743813,0.108,4622.3,4621.5,0.579]
[1756312744015,0.002,4621.7,4621.5,0.108]
[1756312744230,0.002,4621.7,4621.1,2.28478376]
[1756312744231,0.002,4621.7,4621.1,2.75578376]
[1756312744432,0.002,4621.7,4621.2,2.95593324]
[1756312744635,0.002,4621.7,4621.1,1.666]
[1756312744826,0.108,4621.5,4621.1,0.001]
[1756312745416,0.108,4621.5,4621.2,2.63489374]
[1756312745616,0.108,4621.5,4621.4,0.3153]
[1756312746120,0.108,4621.5,4621.1,0.001]
[1756312746310,0.108,4621.5,4621.1,2.6359805]
[1756312746527,0.108,4621.5,4621.4,0.3153]
[1756312747267,0.108,4621.5,4621.4,2.47914645]
[1756312747431,0.002,4621.7,4621.5,0.792]
[1756312747636,0.002,4621.7,4621.5,1.263]
[1756312747849,0.002,4621.7,4621.6,0.7863]
[1756312748352,0.002,4621.7,4621.6,0.3153]
[1756312748552,0.002,4621.7,4621.4,0.792]
[1756312749068,0.002,4621.7,4621.1,0.793]
[1756312749274,0.11,4621.7,4621.1,0.793]
[1756312749453,0.002,4621.7,4621.6,2.47905281]
[1756312749654,0.002,4621.7,4621.6,0.7863]
[1756312750469,0.002,4621.7,4621.1,0.001]
[1756312750841,0.11,4621.7,4621.1,0.001]
[1756312751361,2.1637588,4621.6,4621.1,0.001]
[1756312751545,2.27371747,4621.7,4621.1,0.001]
[1756312751745,2.16376298,4621.6,4621.1,0.001]
[1756312751946,0.11,4621.7,4621.1,0.001]
[1756312752176,2.16383255,4621.5,4621.1,0.001]
[1756312752477,2.27374328,4621.7,4621.1,0.001]
[1756312752650,0.19882696,4621.6,4621.1,0.001]
[1756312752850,2.36258011,4621.6,4621.1,0.001]
[1756312753056,0.11,4621.7,4621.1,0.001]
[1756312753255,2.16375281,4621.6,4621.1,0.001]
[1756312753577,2.27370851,4621.7,4621.1,0.001]
[1756312753872,2.36258786,4621.6,4621.1,0.001]
[1756312754044,2.16375936,4621.6,4621.1,0.001]
[1756312754466,0.11,4621.7,4621.1,0.001]
[1756312754675,0.30879989,4621.7,4621.1,0.001]
[1756312754884,2.16380737,4621.5,4621.1,0.001]
[1756312755177,0.19879989,4621.6,4621.1,0.001]
[1756312755178,2.2737089,4621.7,4621.1,0.001]
[1756312755379,2.16379963,4621.5,4621.1,0.001]
[1756312755540,0.11,4621.7,4621.1,0.001]
[1756312755877,0.30879729,4621.7,4621.4,0.3153]
[1756312756062,0.002,4621.7,4621.6,2.95575281]
[1756312756261,0.002,4621.7,4621.6,3.85005281]
[1756312756442,0.002,4621.7,4621.6,4.61783805]
[1756312757785,0.002,4621.7,4621.6,2.45408524]
[1756312757986,0.002,4621.7,4621.2,3.844]
[1756312758147,0.002,4621.7,4621.6,2.45545281]
[1756312758349,0.002,4621.7,4621.6,3.24745281]
[1756312758655,0.002,4621.7,4621.6,3.71925281]
[1756312761376,0.002,4621.7,4621.6,5.38325281]
[1756312761609,0.002,4621.7,4621.6,5.66616274]
[1756312761783,0.002,4621.7,4621.6,5.7987]
[1756312761984,0.3069,4621.7,4621.3,2.1638928]
[1756312762178,0.002,4621.7,4621.4,3.843]
[1756312762378,0.002,4621.7,4621.1,6.0079835]
[1756312762609,0.002,4621.7,4621.1,0.001]
[1756312762809,0.002,4621.7,4621.1,0.793]
[1756312763199,0.002,4621.7,4621.1,2.95698575]
[1756312763392,2.16570694,4621.7,4621.1,0.793]
[1756312763712,0.002,4621.7,4621.1,0.793]
[1756312763880,0.002,4621.7,4621.6,0.2917]
[1756312764288,0.002,4621.7,4621.4,3.843]
[1756312765004,0.002,4621.7,4621.6,3.24745281]
[1756312765408,0.002,4621.7,4621.6,3.71925281]
[1756312765795,0.002,4621.7,4621.4,3.843]
[1756312766020,0.002,4621.7,4621.2,2.95590322]
[1756312766232,0.002,4621.7,4621.3,6.00585674]
[1756312766618,0.002,4621.7,4621.3,3.842]
[1756312766791,0.002,4621.7,4621.4,0.4718]
[1756312766994,0.002,4621.7,4621.4,2.63564645]
[1756312767195,0.002,4621.7,4621.5,2.16379457]
[1756312767423,0.002,4621.7,4621.4,0.4718]
[1756312767593,2.16384645,4621.4,4621.1,0.001]